bitfinex-derivatives/quotes_BTCF0:USTF0_20260214
["timestamp","ask_amount","ask_price","bid_price","bid_amount"]
[1771110288345,0.014298,69979.0,69976.0,0.01436]
[1771110289046,0.014298,69979.0,69973.0,0.028596]
[1771110289345,0.014298,69979.0,69974.0,0.014298]
[1771110290043,0.042954,69981.0,69975.0,0.014298]
[1771110291347,0.014297,69980.0,69973.0,0.028659]
[1771110291742,0.014298,69977.0,69973.0,0.01436]
[1771110291943,0.014298,69975.0,69969.0,0.014299]
[1771110292346,0.014298,69974.0,69969.0,0.014299]
[1771110292549,0.014298,69976.0,69968.0,0.02866]
[1771110292849,0.01436,69975.0,69970.0,0.014299]
[1771110293552,0.01436,69975.0,69971.0,0.014299]
[1771110294050,0.01436,69975.0,69972.0,0.014299]
[1771110295552,0.014298,69977.0,69972.0,0.014299]
[1771110296051,0.01436,69976.0,69972.0,0.014299]
[1771110298144,0.028658,69976.0,69972.0,0.014299]
[1771110298658,0.028658,69976.0,69971.0,0.014299]
[1771110298958,0.014298,69975.0,69971.0,0.014299]
[1771110299145,0.014298,69975.0,69970.0,0.014299]
[1771110299745,0.014298,69975.0,69971.0,0.014299]
[1771110300752,0.014298,69975.0,69967.0,0.17166]
[1771110300753,0.157297,69981.0,69976.0,0.014298]
[1771110300952,0.11791709,69999.0,69992.0,0.014295]
[1771110301251,0.01436,69998.0,69995.0,0.014294]
[1771110301449,0.01436,69997.0,69994.0,0.014294]
[1771110301754,0.014294,69995.0,69990.0,0.014295]
[1771110302054,0.014294,69994.0,69988.0,0.014295]
[1771110302251,0.014294,69994.0,69989.0,0.014295]
[1771110302450,0.01436,69997.0,69994.0,0.014294]
[1771110302650,0.01436,69997.0,69993.0,0.014294]
[1771110303054,0.014294,69997.0,69992.0,0.02859]
[1771110303246,0.028654,69996.0,69991.0,0.014295]
[1771110304552,0.01436,69996.0,69991.0,0.014295]
[1771110304756,0.01436,69996.0,69993.0,0.014294]
[1771110305055,0.01436,69996.0,69992.0,0.014295]
[1771110307145,0.01436,69995.0,69994.0,0.014294]
[1771110308153,0.00012396,69995.0,69994.0,0.014294]
[1771110308555,0.00012396,69995.0,69993.0,0.014295]
[1771110308748,0.00012396,69995.0,69991.0,0.014295]
[1771110308944,0.00012396,69995.0,69992.0,0.014295]
[1771110309955,0.00012396,69995.0,69993.0,0.014294]
[1771110310256,0.00012396,69995.0,69992.0,0.014295]
[1771110310954,0.00012396,69995.0,69992.0,0.02859]
[1771110311154,0.00012396,69995.0,69993.0,0.014294]
[1771110315255,0.00012396,69995.0,69992.0,0.014295]
[1771110315559,0.01441796,69995.0,69990.0,0.014295]
[1771110316059,0.014294,69994.0,69990.0,0.014295]
[1771110316958,0.014294,69994.0,69989.0,0.014295]
[1771110317347,0.014294,69994.0,69990.0,0.014295]
[1771110317551,0.00012396,69995.0,69992.0,0.014295]
[1771110317754,0.00012396,69995.0,69992.0,0.02859]
[1771110318160,0.00012396,69995.0,69992.0,0.014295]
[1771110320650,0.00012396,69995.0,69991.0,0.014295]
[1771110322461,0.01441796,69995.0,69991.0,0.014295]
[1771110322661,0.01441796,69995.0,69990.0,0.014295]
[1771110323254,0.01436,70000.0,69999.0,0.014293]
[1771110323563,0.014293,70003.0,69998.0,0.014293]
[1771110323865,0.01436,70002.0,70000.0,0.014293]
[1771110324364,0.157252,70006.0,70005.0,0.014292]
[1771110324365,0.01436,70006.0,70005.0,0.014292]
[1771110324556,0.028652,70007.0,70001.0,0.014293]
[1771110324758,0.01436,70007.0,70001.0,0.014293]
[1771110325059,0.01436,70007.0,70003.0,0.014292]
[1771110325259,0.01436,70008.0,70004.0,0.014292]
[1771110326468,0.014292,70007.0,70002.0,0.014293]
[1771110326655,0.028651,70008.0,70003.0,0.014292]
[1771110327464,0.11658113,69997.0,69982.0,0.014297]
[1771110327660,0.014294,69994.0,69983.0,0.01436]
[1771110327962,0.014295,69992.0,69986.0,0.014296]
[1771110328160,0.01436,69993.0,69989.0,0.014295]
[1771110328555,0.028655,69993.0,69985.0,0.014296]
[1771110328759,0.014295,69991.0,69986.0,0.014296]
[1771110329574,0.014296,69988.0,69984.0,0.01436]
[1771110329873,0.014296,69987.0,69984.0,0.01436]
[1771110330067,0.014295,69989.0,69984.0,0.01436]
[1771110330268,0.014295,69991.0,69985.0,0.014296]
[1771110330469,0.014295,69990.0,69985.0,0.014296]
[1771110331063,0.014295,69989.0,69984.0,0.01436]
[1771110331263,0.014295,69990.0,69984.0,0.028656]
[1771110331472,0.014295,69990.0,69985.0,0.014296]
[1771110332376,0.02859,69990.0,69985.0,0.014296]
[1771110332576,0.014295,69990.0,69985.0,0.014296]
[1771110332773,0.014295,69989.0,69985.0,0.014296]
[1771110335475,0.01436,69992.0,69984.0,0.01436]
[1771110335673,0.01436,69992.0,69989.0,0.014295]
[1771110336678,0.01436,69993.0,69990.0,0.014295]
[1771110337778,0.014294,69997.0,69991.0,0.014295]
[1771110337978,0.028654,69996.0,69991.0,0.014295]
[1771110338583,0.014294,69995.0,69991.0,0.014295]
[1771110340586,0.028654,69996.0,69992.0,0.014295]
[1771110340781,0.01436,69996.0,69993.0,0.014294]
[1771110341880,0.01436,69996.0,69991.0,0.014295]
[1771110342087,0.01436,69996.0,69992.0,0.014295]
[1771110342580,0.028654,69996.0,69992.0,0.014295]
[1771110343282,0.01436,69996.0,69990.0,0.014295]
[1771110343586,0.014294,69995.0,69991.0,0.014295]
[1771110343886,0.10935143,69993.0,69984.0,0.01436]
[1771110344079,0.014296,69985.0,69983.0,0.01436]
[1771110344276,0.014295,69990.0,69984.0,0.028656]
[1771110344781,0.014295,69989.0,69984.0,0.028656]
[1771110345885,0.014296,69988.0,69984.0,0.01436]
[1771110346881,0.028592,69988.0,69984.0,0.01436]
[1771110347084,0.014296,69988.0,69984.0,0.01436]
[1771110351786,0.014296,69987.0,69984.0,0.01436]
[1771110352692,0.01436,69991.0,69984.0,0.01436]
[1771110352992,0.014295,69993.0,69988.0,0.014295]
[1771110353293,0.028655,69992.0,69987.0,0.014296]
[1771110353692,0.028655,69992.0,69984.0,0.01436]
[1771110353693,0.014296,69988.0,69984.0,0.01436]
[1771110355390,0.014296,69988.0,69984.0,0.028656]
[1771110355592,0.014295,69990.0,69984.0,0.028656]
[1771110355792,0.014295,69991.0,69984.0,0.042952]
[1771110356692,0.014295,69990.0,69984.0,0.042952]
[1771110356991,0.014295,69989.0,69984.0,0.028656]
[1771110357493,0.014295,69989.0,69984.0,0.042952]
[1771110357991,0.028655,69992.0,69987.0,0.014296]
[1771110360093,0.04295,69992.0,69987.0,0.014296]
[1771110360595,0.014295,69991.0,69986.0,0.014296]
[1771110366795,0.014295,69989.0,69984.0,0.028656]
[1771110367296,0.014295,69989.0,69984.0,0.042952]
[1771110367697,0.014295,69989.0,69984.0,0.028656]
[1771110368697,0.014295,69989.0,69984.0,0.042952]
[1771110369693,0.014295,69989.0,69983.0,0.01436]
[1771110369694,0.014296,69985.0,69983.0,0.01436]
[1771110371805,0.014295,69989.0,69984.0,0.014296]
[1771110372305,0.014296,69988.0,69983.0,0.028656]
[1771110374003,0.014296,69987.0,69983.0,0.01436]
[1771110374403,0.014296,69987.0,69983.0,0.028657]
[1771110374604,0.014296,69988.0,69983.0,0.028657]
[1771110374805,0.014296,69988.0,69983.0,0.01436]
[1771110374994,0.014296,69987.0,69977.0,0.14296]
[1771110375200,0.014297,69981.0,69978.0,0.01436]
[1771110376404,0.014297,69983.0,69978.0,0.01436]
[1771110376605,0.014297,69983.0,69978.0,0.028658]
[1771110377610,0.014297,69982.0,69978.0,0.01436]
[1771110377810,0.014297,69981.0,69978.0,0.01436]
[1771110378108,0.014297,69982.0,69978.0,0.01436]
[1771110378504,0.014297,69981.0,69978.0,0.01436]
[1771110379413,0.014297,69982.0,69978.0,0.01436]
[1771110380311,0.014297,69983.0,69979.0,0.014297]
[1771110380812,0.014297,69983.0,69978.0,0.028657]
[1771110381607,0.014297,69983.0,69978.0,0.01436]
[1771110381809,0.014298,69976.0,69969.0,0.014299]
[1771110382015,0.12721654,69981.0,69972.0,0.014299]
[1771110382016,0.014298,69977.0,69972.0,0.014299]
[1771110382312,0.014298,69978.0,69973.0,0.014298]
[1771110382612,0.014299,69971.0,69966.0,0.143]
[1771110382812,0.014299,69971.0,69966.0,0.15736]
[1771110383013,0.014299,69970.0,69966.0,0.15736]
[1771110383509,0.01436,69974.0,69966.0,0.15736]
[1771110383711,0.01436,69974.0,69969.0,0.014299]
[1771110383914,0.01436,69974.0,69970.0,0.014299]
[1771110384114,0.028658,69974.0,69969.0,0.014299]
[1771110384317,0.01436,69974.0,69970.0,0.014299]
[1771110384810,0.028658,69974.0,69969.0,0.014299]
[1771110385321,0.01436,69974.0,69970.0,0.014299]
[1771110385618,0.01436,69974.0,69968.0,0.0143]
[1771110385619,0.028658,69974.0,69969.0,0.014299]
[1771110387912,0.028658,69974.0,69968.0,0.0143]
[1771110388508,0.028658,69974.0,69969.0,0.014299]
[1771110389019,0.014299,69973.0,69967.0,0.0143]
[1771110389222,0.014299,69973.0,69968.0,0.0143]
[1771110389716,0.014299,69973.0,69968.0,0.028599]
[1771110390819,0.014299,69973.0,69968.0,0.014299]
[1771110391019,0.028658,69974.0,69969.0,0.014299]
[1771110391413,0.01436,69974.0,69972.0,0.014299]
[1771110392116,0.143,69980.0,69974.0,0.014298]
[1771110392324,0.01436,69981.0,69976.0,0.014298]
[1771110392618,0.01436,69983.0,69978.0,0.014297]
[1771110392823,0.01436,69983.0,69977.0,0.014298]
[1771110393020,0.01436,69983.0,69982.0,0.014297]
[1771110393221,0.01429696,69984.0,69982.0,0.014297]
[1771110394122,0.01429696,69984.0,69983.0,0.014297]
[1771110394314,0.01429696,69984.0,69973.0,0.1122759]
[1771110394315,0.11291954,70000.0,69981.0,0.1122759]
[1771110394522,0.014294,69996.0,69989.0,0.014295]
[1771110394819,0.014294,69996.0,69987.0,0.014296]
[1771110394820,0.11291954,70003.0,69987.0,0.014296]
[1771110395020,0.11291954,70003.0,69995.0,0.014294]
[1771110395021,0.014293,70001.0,69995.0,0.014294]
[1771110395218,0.014293,70000.0,69995.0,0.014294]
[1771110395412,0.15736,70002.0,69986.0,0.01436]
[1771110395413,0.014296,69988.0,69986.0,0.01436]
[1771110396216,0.014296,69985.0,69984.0,0.01436]
[1771110396820,0.014296,69984.0,69980.0,0.01436]
[1771110397625,0.014296,69985.0,69980.0,0.01436]
[1771110398526,0.014296,69987.0,69981.0,0.014297]
[1771110399623,0.028656,69987.0,69981.0,0.014297]
[1771110400226,0.01436,69987.0,69982.0,0.014297]
[1771110400426,0.014296,69986.0,69980.0,0.01436]
[1771110400732,0.014296,69985.0,69980.0,0.01436]
[1771110401727,0.014296,69985.0,69980.0,0.028657]
[1771110403429,0.014296,69985.0,69980.0,0.01436]
[1771110403625,0.028592,69985.0,69980.0,0.01436]
[1771110403832,0.014297,69982.0,69980.0,0.01436]
[1771110404030,0.014297,69983.0,69977.0,0.014298]
[1771110404232,0.014297,69983.0,69978.0,0.01436]
[1771110404422,0.11014444,69986.0,69975.0,0.143]
[1771110404623,0.014297,69980.0,69973.0,0.014299]
[1771110404829,0.014297,69981.0,69975.0,0.014298]
[1771110405132,0.014297,69981.0,69976.0,0.014298]
[1771110405335,0.028657,69982.0,69977.0,0.014298]
[1771110405532,0.01436,69982.0,69978.0,0.014297]
[1771110407335,0.01436,69982.0,69978.0,0.015297]
[1771110407641,0.028657,69982.0,69978.0,0.001]
[1771110408342,0.01436,69982.0,69978.0,0.015298]
[1771110408542,0.01436,69982.0,69979.0,0.014297]
[1771110408935,0.01436,69982.0,69978.0,0.015298]
[1771110409543,0.01436,69982.0,69978.0,0.014298]
[1771110409742,0.01436,69982.0,69979.0,0.014297]
[1771110409943,0.01436,69982.0,69978.0,0.014297]
[1771110410837,0.01436,69982.0,69979.0,0.014297]
[1771110411034,0.01436,69982.0,69980.0,0.014297]
[1771110411337,0.01436,69983.0,69979.0,0.014297]
[1771110411537,0.014296,69988.0,69983.0,0.014296]
[1771110412132,0.01436,69987.0,69983.0,0.014296]
[1771110412337,0.143,69991.0,69979.0,0.11473444]
[1771110412537,0.014294,69995.0,69990.0,0.014295]
[1771110412736,0.15736,69994.0,69990.0,0.014295]
[1771110413348,0.07143743,69991.0,69990.0,0.014295]
[1771110413545,0.08579743,69991.0,69989.0,0.014295]
[1771110414642,0.01399738,69991.0,69990.0,0.014295]
[1771110414844,0.01436,69991.0,69990.0,0.014295]
[1771110416446,0.08579658,69992.0,69990.0,0.014295]
[1771110419747,0.143,69998.0,69996.0,0.014294]
[1771110420048,0.01436,69997.0,69996.0,0.014294]
[1771110420248,0.01436,69997.0,69988.0,0.028656]
[1771110420249,0.12443444,70013.0,69992.0,0.12909444]
[1771110420545,0.028648,70028.0,70022.0,0.014288]
[1771110420753,3.2e-07,70023.0,70022.0,0.014289]
[1771110420946,0.12443044,70037.0,70022.0,0.014289]
[1771110421146,0.01436,70036.0,70034.0,0.014286]
[1771110421348,0.014286,70035.0,70029.0,0.014287]
[1771110421544,0.014287,70030.0,70024.0,0.01436]
[1771110421851,0.014289,70021.0,70015.0,0.01429]
[1771110422947,0.014289,70021.0,70014.0,0.01436]
[1771110423349,0.01436,70023.0,70015.0,0.01429]
[1771110423653,0.014289,70022.0,70015.0,0.01429]
[1771110423952,0.08567714,70021.0,70015.0,0.01429]
[1771110424348,0.07138814,70021.0,70013.0,0.01436]
[1771110424554,0.014289,70018.0,70013.0,0.01436]
[1771110424852,0.01429,70017.0,70013.0,0.01436]
[1771110425254,0.014289,70018.0,70013.0,0.01436]
[1771110425453,0.01436,70020.0,70015.0,0.01429]
[1771110425756,0.01436,70020.0,70015.0,0.01529]
[1771110426152,0.12450444,70020.0,70013.0,0.01436]
[1771110426352,0.014292,70007.0,70003.0,0.14296]
[1771110426655,0.014292,70006.0,70004.0,0.01436]
[1771110426849,0.014292,70006.0,70005.0,0.01436]
[1771110427153,0.014292,70004.0,69999.0,0.14296]
[1771110427355,0.014292,70005.0,70003.0,0.001]
[1771110427554,0.014292,70007.0,69999.0,0.014293]
[1771110427752,0.014292,70007.0,70001.0,0.014293]
[1771110430156,0.014292,70006.0,70000.0,0.028653]
[1771110431657,0.014292,70007.0,70001.0,0.014293]
[1771110432561,0.014292,70007.0,70000.0,0.01436]
[1771110432751,0.014292,70005.0,70000.0,0.01436]
[1771110433154,0.014292,70004.0,70000.0,0.01436]
[1771110433756,0.014292,70005.0,70000.0,0.01436]
[1771110434759,0.014293,70002.0,70000.0,0.01436]
[1771110434958,0.014292,70004.0,70000.0,0.01436]
[1771110435456,0.014291,70008.0,70000.0,0.028653]
[1771110435762,0.014291,70008.0,70002.0,0.014293]
[1771110436261,0.028582,70009.0,70003.0,0.014292]
[1771110436462,0.014291,70009.0,70003.0,0.014292]
[1771110436662,0.014291,70009.0,70001.0,0.01436]
[1771110436861,0.014291,70009.0,70001.0,0.028653]
[1771110437160,0.014291,70009.0,70003.0,0.014292]
[1771110438159,0.014291,70009.0,70004.0,0.014292]
[1771110439359,0.014291,70009.0,70003.0,0.014292]
[1771110439758,0.01436,70010.0,70003.0,0.014292]
[1771110439759,0.028651,70010.0,70004.0,0.014292]
[1771110440165,0.042942,70010.0,70004.0,0.014292]
[1771110440760,0.11367333,70026.0,70005.0,0.12240523]
[1771110440956,0.171608,70025.0,70011.0,0.014291]
[1771110441266,0.07142908,70021.0,70017.0,0.01429]
[1771110441461,0.014288,70023.0,70017.0,0.01429]
[1771110441667,0.01436,70024.0,70019.0,0.014289]
[1771110441866,0.01436,70023.0,70010.0,0.01436]
[1771110442066,0.014289,70021.0,70016.0,0.01429]
[1771110442256,0.014289,70020.0,70014.0,0.01429]
[1771110442459,0.014289,70021.0,70012.0,0.014291]
[1771110442756,0.01429,70017.0,70012.0,0.014291]
[1771110443269,0.08576572,70022.0,70021.0,0.014289]
[1771110443464,0.08576572,70022.0,70020.0,0.014289]
[1771110444556,0.27092133,70027.0,70022.0,0.014289]
[1771110444557,0.14296,70027.0,70022.0,0.014289]
[1771110444862,0.014287,70032.0,70026.0,0.014288]
[1771110445069,0.07139781,70030.0,70026.0,0.014288]
[1771110445464,0.07139781,70030.0,70028.0,0.014287]
[1771110445858,0.07139781,70030.0,70027.0,0.014287]
[1771110446168,0.014286,70034.0,70027.0,0.014287]
[1771110446169,0.014287,70032.0,70027.0,0.014287]
[1771110446870,0.08568116,70033.0,70027.0,0.014287]
[1771110447070,0.01436,70031.0,70028.0,0.014287]
[1771110448270,0.028647,70031.0,70024.0,0.014288]
[1771110448470,0.042934,70031.0,70024.0,0.014288]
[1771110449375,0.01436,70031.0,70026.0,0.014288]
[1771110449776,0.014287,70030.0,70024.0,0.014288]
[1771110449976,0.014287,70030.0,70023.0,0.014288]
[1771110450673,0.014287,70029.0,70023.0,0.014288]
[1771110450879,0.014288,70026.0,70022.0,0.01436]
[1771110451077,0.014288,70026.0,70017.0,0.01436]
[1771110451078,0.014289,70022.0,70017.0,0.01436]
[1771110451379,0.014289,70022.0,70016.0,0.02865]
[1771110455274,0.014289,70021.0,70016.0,0.01436]
[1771110455675,0.014289,70021.0,70016.0,0.02865]
[1771110455875,0.014289,70022.0,70016.0,0.02865]
[1771110456983,0.028578,70022.0,70016.0,0.02865]
[1771110457369,0.014289,70022.0,70016.0,0.02865]
[1771110457571,0.014289,70019.0,70016.0,0.01436]
[1771110457879,0.014289,70019.0,70015.0,0.01436]
[1771110458079,0.014289,70022.0,70015.0,0.02865]
[1771110458282,0.014289,70021.0,70015.0,0.02865]
[1771110459681,0.01436,70024.0,70015.0,0.01436]
[1771110459883,0.014289,70021.0,70015.0,0.01436]
[1771110460084,0.014289,70020.0,70015.0,0.01436]
[1771110460884,0.014289,70021.0,70015.0,0.02865]
[1771110461077,0.014289,70021.0,70015.0,0.04294]
[1771110461278,0.014289,70022.0,70016.0,0.01429]
[1771110461779,0.014289,70021.0,70015.0,0.02865]
[1771110462488,0.014289,70021.0,70015.0,0.04294]
[1771110463187,0.014289,70022.0,70016.0,0.01429]
[1771110464392,0.014289,70021.0,70015.0,0.02865]
[1771110464691,0.014289,70022.0,70016.0,0.01429]
[1771110464888,0.12068722,70018.0,70002.0,0.014293]
[1771110465089,0.014291,70012.0,70003.0,0.01436]
[1771110465279,0.014292,70005.0,70001.0,0.00027]
[1771110465485,0.014292,70006.0,70002.0,0.01436]
[1771110468497,0.014292,70003.0,70002.0,0.01436]
[1771110468699,0.014292,70005.0,70001.0,0.01436]
[1771110469088,0.014293,70003.0,70001.0,0.01436]
[1771110469289,0.014292,70004.0,70001.0,0.01436]
[1771110469994,0.13498022,70003.0,69995.0,0.014294]
[1771110470188,0.12068722,70003.0,69996.0,0.01436]
[1771110470395,0.014293,69999.0,69996.0,0.01436]
[1771110470696,0.028586,69999.0,69992.0,0.157215]
[1771110470898,0.014295,69993.0,69992.0,0.14292]
[1771110471193,0.014295,69993.0,69992.0,0.0076184]
[1771110471894,0.014295,69993.0,69988.0,0.00014728]
[1771110471895,0.014295,69993.0,69991.0,0.01436]
[1771110472099,0.014295,69993.0,69990.0,0.01436]
[1771110472594,0.014294,69997.0,69990.0,0.01436]
[1771110472785,0.01436,69999.0,69990.0,0.01436]
[1771110472786,0.01436,69999.0,69994.0,0.014294]
[1771110473794,0.01436,69999.0,69994.0,0.028588]
[1771110473995,1.6e-07,70003.0,70002.0,0.014293]
[1771110474298,0.01436,70008.0,70003.0,0.014292]
[1771110474491,0.01436,70008.0,70004.0,0.014292]
[1771110475597,0.01436,70008.0,70004.0,0.028584]
[1771110475788,0.01436,70008.0,70005.0,0.014292]
[1771110477002,0.01436,70008.0,70006.0,0.014292]
[1771110477201,0.21436704,70012.0,70005.0,0.014292]
[1771110477402,0.01436,70011.0,70005.0,0.014292]
[1771110480301,0.028651,70011.0,70005.0,0.014292]
[1771110480905,4.6e-07,70012.0,70011.0,0.014291]
[1771110481202,0.07141389,70014.0,70011.0,0.014291]
[1771110482805,0.07141389,70014.0,70012.0,0.014291]
[1771110483309,8.9e-07,70014.0,70013.0,0.01429]
[1771110483509,0.12068722,70033.0,70012.0,0.14279018]
[1771110483699,0.014284,70043.0,70012.0,0.14279018]
[1771110483700,0.0714046,70024.0,70020.0,0.014289]
[1771110483902,0.0714046,70024.0,70022.0,0.014289]
[1771110484207,0.01436,70026.0,70023.0,0.014288]
[1771110484607,0.01436,70026.0,70022.0,0.014289]
[1771110486208,0.07140112,70027.0,70025.0,0.014288]
[1771110486404,0.08576112,70027.0,70024.0,0.014288]
[1771110486803,0.08576112,70027.0,70025.0,0.014288]
[1771110487306,0.08576112,70027.0,70024.0,0.014288]
[1771110487307,0.07140112,70027.0,70023.0,0.014288]
[1771110487502,0.08576112,70027.0,70023.0,0.014288]
[1771110488610,0.07140112,70027.0,70023.0,0.014288]
[1771110488908,0.08576112,70027.0,70022.0,0.014289]
[1771110489407,0.10004912,70027.0,70021.0,0.014289]
[1771110490109,0.08576112,70027.0,70021.0,0.014289]
[1771110490410,0.10004912,70027.0,70021.0,0.014289]
[1771110491606,0.08576112,70027.0,70021.0,0.014289]
[1771110491808,0.08576112,70027.0,70021.0,0.028578]
[1771110492203,0.08576112,70027.0,70022.0,0.014289]
[1771110493111,0.08576112,70027.0,70021.0,0.014289]
[1771110494206,0.08576112,70027.0,70022.0,0.014289]
[1771110494409,0.08576112,70027.0,70024.0,0.014288]
[1771110494605,0.08576112,70027.0,70026.0,0.014288]
[1771110499511,0.014287,70032.0,70027.0,0.014288]
[1771110499817,0.01436,70031.0,70030.0,0.014287]
[1771110500018,0.01436,70032.0,70030.0,0.014287]
[1771110500217,0.01436,70032.0,70029.0,0.014287]
[1771110501624,0.01436,70032.0,70028.0,0.014287]
[1771110502318,0.07139491,70033.0,70028.0,0.014287]
[1771110502510,0.01436,70032.0,70028.0,0.014287]
[1771110504718,0.028647,70032.0,70026.0,0.014288]
[1771110506323,0.01436,70032.0,70027.0,0.014288]
[1771110506520,0.01436,70032.0,70028.0,0.014287]
[1771110506721,0.01436,70032.0,70027.0,0.014288]
[1771110507419,0.01436,70032.0,70028.0,0.014287]
[1771110507617,0.01436,70032.0,70029.0,0.014287]
[1771110507818,0.01436,70032.0,70027.0,0.014287]
[1771110508020,0.01436,70032.0,70028.0,0.014287]
[1771110508417,0.01436,70032.0,70031.0,0.014287]
[1771110508611,0.00750528,70032.0,70030.0,0.014287]
[1771110509721,0.00850528,70032.0,70030.0,0.014287]
[1771110509922,0.00850528,70032.0,70029.0,0.014287]
[1771110510419,0.00750528,70032.0,70029.0,0.014287]
[1771110510924,0.00750528,70032.0,70029.0,0.028574]
[1771110511318,0.00750528,70032.0,70030.0,0.014287]
[1771110511520,9.1e-07,70033.0,70031.0,0.014287]
[1771110511725,9.1e-07,70033.0,70032.0,0.014287]
[1771110514524,0.01432,70036.0,70034.0,0.014286]
[1771110514922,0.01432,70036.0,70032.0,0.00568042]
[1771110515233,0.028606,70036.0,70032.0,0.00568042]
[1771110516429,0.014286,70036.0,70032.0,0.00568042]
[1771110517026,0.014286,70036.0,70029.0,0.028607]
[1771110517027,0.12766434,70033.0,70028.0,0.01432]
[1771110517227,0.014287,70031.0,70028.0,0.01432]
[1771110517419,0.014287,70031.0,70027.0,0.01432]
[1771110517623,0.014287,70031.0,70026.0,0.01432]
[1771110519021,0.014287,70029.0,70019.0,0.157209]
[1771110519228,0.014288,70023.0,70020.0,0.01432]
[1771110519433,0.014288,70024.0,70019.0,0.01432]
[1771110519631,0.14198534,70028.0,70021.0,0.014289]
[1771110520326,0.01432,70028.0,70025.0,0.014288]
[1771110520522,0.01432,70028.0,70024.0,0.014288]
[1771110520928,0.01432,70028.0,70023.0,0.014288]
[1771110522131,0.014287,70030.0,70023.0,0.014288]
[1771110522433,0.01432,70029.0,70023.0,0.014288]
[1771110523134,0.01432,70029.0,70024.0,0.014288]
[1771110523335,0.01432,70029.0,70025.0,0.014288]
[1771110523633,0.01432,70029.0,70026.0,0.014288]
[1771110523830,9.1e-07,70032.0,70029.0,0.014287]
[1771110524033,9.1e-07,70032.0,70027.0,0.014288]
[1771110524034,0.01432,70031.0,70027.0,0.014288]
[1771110524230,0.07139578,70032.0,70027.0,0.014288]
[1771110524430,0.01432,70035.0,70029.0,0.014287]
[1771110524633,1.16e-06,70035.0,70033.0,0.014286]
[1771110525636,0.0713891,70038.0,70028.0,0.01432]
[1771110525835,0.01432,70037.0,70033.0,0.014286]
[1771110526034,0.014286,70036.0,70029.0,0.014287]
[1771110526238,0.014286,70036.0,70029.0,0.028574]
[1771110526442,0.014286,70036.0,70030.0,0.014287]
[1771110530445,0.028606,70036.0,70030.0,0.014287]
[1771110532552,0.01432,70036.0,70030.0,0.014287]
[1771110533045,0.14798726,70036.0,70028.0,0.01432]
[1771110533250,0.11938126,70033.0,70023.0,0.028608]
[1771110533452,0.01432,70032.0,70027.0,0.014288]
[1771110533752,0.01432,70032.0,70026.0,0.014288]
[1771110534142,0.13366726,70033.0,70026.0,0.01432]
[1771110534346,0.13366726,70033.0,70025.0,0.028608]
[1771110534851,0.13366726,70033.0,70026.0,0.014288]
[1771110535046,0.13366726,70033.0,70027.0,0.014288]
[1771110535253,0.0713891,70038.0,70032.0,0.014286]
[1771110535553,0.01432,70037.0,70032.0,0.014286]
[1771110538552,0.01432,70037.0,70031.0,0.014287]
[1771110538954,0.028606,70037.0,70031.0,0.014287]
[1771110539255,0.01432,70037.0,70031.0,0.014287]
[1771110539457,0.01432,70037.0,70032.0,0.014287]
[1771110539852,0.01432,70037.0,70031.0,0.014287]
[1771110540844,0.028606,70037.0,70031.0,0.014287]
[1771110541357,0.028606,70037.0,70029.0,0.01432]
[1771110541358,0.014287,70032.0,70029.0,0.01432]
[1771110541547,0.13366826,70032.0,70029.0,0.01432]
[1771110541753,0.13366826,70032.0,70025.0,0.014288]
[1771110542051,0.0713891,70038.0,70020.0,0.014289]
[1771110542052,0.014288,70027.0,70020.0,0.014289]
[1771110542255,0.13366926,70025.0,70015.0,0.01429]
[1771110542446,0.014288,70024.0,70018.0,0.014289]
[1771110542858,0.014288,70025.0,70018.0,0.014289]
[1771110543058,0.014288,70025.0,70019.0,0.01432]
[1771110543859,0.014289,70023.0,70019.0,0.01432]
[1771110544057,0.014289,70022.0,70019.0,0.01432]
[1771110544258,0.014288,70024.0,70019.0,0.01432]
[1771110546364,0.014288,70023.0,70019.0,0.01432]
[1771110546563,0.11938126,70021.0,70010.0,0.014291]
[1771110546766,0.01429,70018.0,70011.0,0.014291]
[1771110547163,0.13367026,70019.0,70011.0,0.014291]
[1771110547364,0.014289,70018.0,70010.0,0.01432]
[1771110547971,0.01432,70017.0,70011.0,0.014291]
[1771110548161,0.11938126,70016.0,70011.0,0.014291]
[1771110548660,0.01429,70015.0,70010.0,0.01432]
[1771110548860,0.13367126,70016.0,70010.0,0.01432]
[1771110549869,0.13367126,70016.0,70009.0,0.014291]
[1771110550459,0.13367126,70016.0,70008.0,0.01432]
[1771110550660,0.01429,70015.0,70008.0,0.028611]
[1771110550964,0.13367126,70014.0,70008.0,0.01432]
[1771110551168,0.13367226,70013.0,70008.0,0.01432]
[1771110553667,0.01432,70014.0,70008.0,0.01432]
[1771110553870,0.01432,70014.0,70012.0,0.01429]
[1771110555275,0.01432,70014.0,70010.0,0.014291]
[1771110555470,0.01432,70014.0,70011.0,0.014291]
[1771110555665,0.13353738,70023.0,70008.0,0.01532]
[1771110555865,0.014287,70030.0,70008.0,0.01532]
[1771110555866,0.11924938,70012.0,70008.0,0.01432]
[1771110556060,0.11924938,70012.0,70007.0,0.01432]
[1771110556267,0.13354038,70012.0,70005.0,0.157172]
[1771110556476,0.11924938,70012.0,70006.0,0.014292]
[1771110556975,0.13354038,70012.0,70007.0,0.01432]
[1771110557476,0.13354038,70012.0,70005.0,0.157172]
[1771110557666,0.11924938,70012.0,70005.0,0.14288]
[1771110557975,0.13354038,70012.0,70006.0,0.01432]
[1771110558467,0.014291,70011.0,70006.0,0.01432]
[1771110558662,0.13354038,70012.0,70006.0,0.01432]
[1771110559174,0.11924938,70012.0,70006.0,0.01432]